[Event "Early-Titled-Tuesday-Blitz-September-26-2023"]
[Site "Chess.com"]
[Date "2023.09.26"]
[Round "7"]
[White "ChessQueen"]
[Black "Mr_ruthless"]
[Result "1-0"]
[WhiteElo "2720"]
[BlackElo "2475"]
[TimeControl "180+1"]
[EndTime "9:16:39 PDT"]
[Termination "ChessQueen won by resignation"]

1. e4 {[%clk 0:03:00.9]} 1... e5 {[%clk 0:02:59.6]} 2. Nf3 {[%clk 0:03:00.8]}
2... Nc6 {[%clk 0:03:00]} 3. Bb5 {[%clk 0:03:01.1]} 3... a6 {[%clk 0:02:59.6]}
4. Ba4 {[%clk 0:03:01.2]} 4... Nf6 {[%clk 0:02:59.9]} 5. O-O {[%clk 0:03:01.1]}
5... Be7 {[%clk 0:03:00.6]} 6. d4 {[%clk 0:03:01.5]} 6... exd4 {[%clk
0:02:48.6]} 7. e5 {[%clk 0:03:01.1]} 7... Ne4 {[%clk 0:02:41]} 8. Nxd4 {[%clk
0:02:59.2]} 8... Nc5 {[%clk 0:02:39.5]} 9. Nf5 {[%clk 0:02:59.1]} 9... Ne6
{[%clk 0:01:47.1]} 10. Bxc6 {[%clk 0:02:52.8]} 10... dxc6 {[%clk 0:01:43.5]} 11.
Qg4 {[%clk 0:02:50.6]} 11... Kf8 {[%clk 0:01:22.8]} 12. Rd1 {[%clk 0:02:46.7]}
12... Qe8 {[%clk 0:01:22.8]} 13. Nc3 {[%clk 0:02:45]} 13... h5 {[%clk
0:01:22.5]} 14. Qg3 {[%clk 0:02:29.4]} 14... g6 {[%clk 0:00:48.7]} 15. Nxe7
{[%clk 0:02:25.7]} 15... Qxe7 {[%clk 0:00:47]} 16. h4 {[%clk 0:02:23.7]} 16...
Kg7 {[%clk 0:00:23.8]} 17. Ne4 {[%clk 0:02:22.3]} 17... Rd8 {[%clk 0:00:19.9]}
18. Bd2 {[%clk 0:02:14]} 18... Rd4 {[%clk 0:00:17.7]} 19. Qe3 {[%clk 0:02:11.9]}
19... Kg8 {[%clk 0:00:09.1]} 20. Nf6+ {[%clk 0:02:09.3]} 20... Kf8 {[%clk
0:00:07.3]} 21. Qh6+ {[%clk 0:02:09.4]} 1-0

[Event "Early-Titled-Tuesday-Blitz-September-26-2023"]
[Site "Chess.com"]
[Date "2023.09.26"]
[Round "7"]
[White "Boundless_Strike"]
[Black "ploxoi"]
[Result "1-0"]
[WhiteElo "2600"]
[BlackElo "2427"]
[TimeControl "180+1"]
[EndTime "9:16:56 PDT"]
[Termination "Boundless_Strike won by resignation"]

1. d4 {[%clk 0:03:00.9]} 1... d5 {[%clk 0:02:59.3]} 2. e4 {[%clk 0:03:01.3]}
2... dxe4 {[%clk 0:02:58.1]} 3. Nc3 {[%clk 0:03:01.8]} 3... Nf6 {[%clk
0:02:54.8]} 4. f3 {[%clk 0:03:02]} 4... exf3 {[%clk 0:02:51.5]} 5. Nxf3 {[%clk
0:03:01.9]} 5... Nbd7 {[%clk 0:02:50.9]} 6. Bd3 {[%clk 0:02:42.6]} 6... e6
{[%clk 0:02:50.5]} 7. O-O {[%clk 0:02:40.8]} 7... Bb4 {[%clk 0:02:50.4]} 8. Qe1
{[%clk 0:02:39.5]} 8... Nd5 {[%clk 0:02:36.7]} 9. Qg3 {[%clk 0:02:33.7]} 9...
Nxc3 {[%clk 0:02:35.8]} 10. bxc3 {[%clk 0:01:38.4]} 10... Bxc3 {[%clk
0:02:36.7]} 11. Rb1 {[%clk 0:01:37.9]} 11... Nf6 {[%clk 0:02:22.2]} 12. Kh1
{[%clk 0:01:27.1]} 12... b6 {[%clk 0:01:43.2]} 13. Ne5 {[%clk 0:01:17.6]} 13...
Bb7 {[%clk 0:01:40.2]} 14. Qxg7 {[%clk 0:01:10.3]} 14... Bxg2+ {[%clk
0:01:35.4]} 15. Qxg2 {[%clk 0:00:33.9]} 15... Bxd4 {[%clk 0:01:35.1]} 16. Bb5+
{[%clk 0:00:30.1]} 16... Kf8 {[%clk 0:01:28.4]} 17. Bh6+ {[%clk 0:00:28.1]} 1-0

[Event "Early-Titled-Tuesday-Blitz-September-26-2023"]
[Site "Chess.com"]
[Date "2023.09.26"]
[Round "7"]
[White "Roedor"]
[Black "Yuruultei"]
[Result "1-0"]
[WhiteElo "2339"]
[BlackElo "2264"]
[TimeControl "180+1"]
[EndTime "9:16:56 PDT"]
[Termination "Roedor won by resignation"]

1. d4 {[%clk 0:02:57.6]} 1... Nf6 {[%clk 0:02:42.5]} 2. c4 {[%clk 0:02:57.3]}
2... g6 {[%clk 0:02:42.8]} 3. g3 {[%clk 0:02:57.2]} 3... Bg7 {[%clk 0:02:42.7]}
4. Bg2 {[%clk 0:02:55.5]} 4... O-O {[%clk 0:02:43]} 5. Nc3 {[%clk 0:02:55.6]}
5... d6 {[%clk 0:02:43]} 6. Nf3 {[%clk 0:02:55.6]} 6... c6 {[%clk 0:02:40.6]} 7.
O-O {[%clk 0:02:55.4]} 7... Bf5 {[%clk 0:02:40.8]} 8. Ne1 {[%clk 0:02:55.3]}
8... Be6 {[%clk 0:02:40]} 9. d5 {[%clk 0:02:54.9]} 9... cxd5 {[%clk 0:02:27.6]}
10. cxd5 {[%clk 0:02:55.8]} 10... Bd7 {[%clk 0:02:24.8]} 11. e4 {[%clk
0:02:51.7]} 11... Na6 {[%clk 0:02:24.7]} 12. Nd3 {[%clk 0:02:51]} 12... Rc8
{[%clk 0:02:24.5]} 13. Be3 {[%clk 0:02:49.3]} 13... b6 {[%clk 0:01:46.1]} 14. h3
{[%clk 0:02:33.6]} 14... Nc5 {[%clk 0:01:17]} 15. e5 {[%clk 0:02:26.3]} 15...
dxe5 {[%clk 0:01:07.1]} 16. Nxe5 {[%clk 0:02:27.2]} 16... Bf5 {[%clk 0:01:03.8]}
17. Nc6 {[%clk 0:02:24.8]} 17... Qd7 {[%clk 0:00:28.4]} 18. Bxc5 {[%clk
0:02:19.9]} 18... bxc5 {[%clk 0:00:26.5]} 19. g4 {[%clk 0:02:20]} 19... Bxg4
{[%clk 0:00:20.6]} 20. hxg4 {[%clk 0:02:19.5]} 20... Nxg4 {[%clk 0:00:21.5]} 21.
Nxe7+ {[%clk 0:02:16.6]} 21... Qxe7 {[%clk 0:00:12]} 22. Qxg4 {[%clk 0:02:16.1]}
22... Bxc3 {[%clk 0:00:12.9]} 23. bxc3 {[%clk 0:02:14.9]} 23... Qd6 {[%clk
0:00:13.8]} 24. c4 {[%clk 0:02:14.5]} 24... Rfe8 {[%clk 0:00:14.7]} 25. Rfe1
{[%clk 0:02:14.5]} 25... Rxe1+ {[%clk 0:00:14]} 26. Rxe1 {[%clk 0:02:15.4]}
26... Rb8 {[%clk 0:00:14]} 27. Qg3 {[%clk 0:02:12.3]} 27... Qd8 {[%clk
0:00:11.7]} 28. d6 {[%clk 0:02:11.4]} 28... Rb2 {[%clk 0:00:10]} 1-0

[Event "Early-Titled-Tuesday-Blitz-September-26-2023"]
[Site "Chess.com"]
[Date "2023.09.26"]
[Round "7"]
[White "ExchangeAB"]
[Black "draksbg"]
[Result "0-1"]
[WhiteElo "2433"]
[BlackElo "2651"]
[TimeControl "180+1"]
[EndTime "9:17:07 PDT"]
[Termination "draksbg won by resignation"]

1. Nf3 {[%clk 0:03:00.9]} 1... Nf6 {[%clk 0:02:58.3]} 2. e3 {[%clk 0:03:01.1]}
2... g6 {[%clk 0:02:58.1]} 3. b3 {[%clk 0:03:01.3]} 3... Bg7 {[%clk 0:02:59]} 4.
Bb2 {[%clk 0:03:02]} 4... O-O {[%clk 0:02:59.9]} 5. Be2 {[%clk 0:03:02.4]} 5...
d5 {[%clk 0:02:59.5]} 6. O-O {[%clk 0:03:01.9]} 6... c5 {[%clk 0:03:00.1]} 7. d3
{[%clk 0:03:00.9]} 7... Nc6 {[%clk 0:03:00.9]} 8. Nbd2 {[%clk 0:03:00.9]} 8...
Re8 {[%clk 0:02:59.9]} 9. Ne5 {[%clk 0:03:00]} 9... Qc7 {[%clk 0:02:56.8]} 10.
Nxc6 {[%clk 0:02:35.5]} 10... Qxc6 {[%clk 0:02:57.4]} 11. Nf3 {[%clk 0:02:33.8]}
11... Nd7 {[%clk 0:02:56.1]} 12. Bxg7 {[%clk 0:02:33.3]} 12... Kxg7 {[%clk
0:02:56.6]} 13. d4 {[%clk 0:02:33.2]} 13... b6 {[%clk 0:02:55.9]} 14. c3 {[%clk
0:02:32.4]} 14... Bb7 {[%clk 0:02:55.8]} 15. Rc1 {[%clk 0:02:31.8]} 15... e5
{[%clk 0:02:55.8]} 16. dxe5 {[%clk 0:02:28.1]} 16... Nxe5 {[%clk 0:02:56.4]} 17.
Nxe5 {[%clk 0:02:29]} 17... Rxe5 {[%clk 0:02:56.9]} 18. Bf3 {[%clk 0:02:29.5]}
18... Qc7 {[%clk 0:02:47.8]} 19. c4 {[%clk 0:02:25.7]} 19... Rd8 {[%clk
0:02:44.6]} 20. cxd5 {[%clk 0:02:25.3]} 20... Bxd5 {[%clk 0:02:45.2]} 21. Bxd5
{[%clk 0:02:25.6]} 21... Rexd5 {[%clk 0:02:45.8]} 22. Qf3 {[%clk 0:02:23.5]}
22... Rd2 {[%clk 0:02:43.4]} 23. a3 {[%clk 0:02:12]} 23... R8d3 {[%clk
0:02:35.6]} 24. b4 {[%clk 0:02:06.3]} 24... c4 {[%clk 0:02:34.7]} 25. a4 {[%clk
0:01:53.9]} 25... c3 {[%clk 0:02:34]} 26. h4 {[%clk 0:01:44.6]} 26... h5 {[%clk
0:02:33.2]} 27. Rfd1 {[%clk 0:01:26.2]} 27... c2 {[%clk 0:02:32.5]} 28. Rxd2
{[%clk 0:01:25.2]} 28... Rxd2 {[%clk 0:02:33.1]} 29. g3 {[%clk 0:01:13.8]} 29...
Qc3 {[%clk 0:02:30.8]} 30. Kg2 {[%clk 0:00:54.4]} 30... Qxb4 {[%clk 0:02:29.1]}
31. Qc6 {[%clk 0:00:45.2]} 31... Qb2 {[%clk 0:02:27.8]} 32. Qc7 {[%clk
0:00:29.7]} 32... Qxc1 {[%clk 0:02:26.5]} 33. Qe5+ {[%clk 0:00:29.6]} 33... Kh7
{[%clk 0:02:26.7]} 34. Qe7 {[%clk 0:00:24.2]} 34... Rxf2+ {[%clk 0:02:21.8]} 35.
Kxf2 {[%clk 0:00:21.5]} 35... Qd2+ {[%clk 0:02:22]} 36. Kf3 {[%clk 0:00:21.7]}
36... Qd5+ {[%clk 0:02:21.9]} 37. e4 {[%clk 0:00:20.4]} 37... Qd3+ {[%clk
0:02:20.4]} 38. Kf4 {[%clk 0:00:20.4]} 38... Qd2+ {[%clk 0:02:16.3]} 39. Ke5
{[%clk 0:00:19.4]} 39... Qc3+ {[%clk 0:02:16.1]} 40. Kd5 {[%clk 0:00:19.1]}
40... Qc5+ {[%clk 0:02:14.9]} 0-1

[Event "Early-Titled-Tuesday-Blitz-September-26-2023"]
[Site "Chess.com"]
[Date "2023.09.26"]
[Round "7"]
[White "KatakuriDono"]
[Black "Juicy_Fork"]
[Result "1-0"]
[WhiteElo "2332"]
[BlackElo "2464"]
[TimeControl "180+1"]
[EndTime "9:17:08 PDT"]
[Termination "KatakuriDono won by resignation"]

1. d4 {[%clk 0:03:00.9]} 1... Nf6 {[%clk 0:02:59.9]} 2. c4 {[%clk 0:03:01]} 2...
g6 {[%clk 0:03:00.6]} 3. Nc3 {[%clk 0:03:01.1]} 3... Bg7 {[%clk 0:03:01.3]} 4.
e4 {[%clk 0:03:01.5]} 4... d6 {[%clk 0:03:02]} 5. Nge2 {[%clk 0:03:01.7]} 5...
O-O {[%clk 0:03:02.5]} 6. Ng3 {[%clk 0:03:02]} 6... c5 {[%clk 0:03:00.7]} 7. d5
{[%clk 0:03:02.3]} 7... h5 {[%clk 0:03:00.5]} 8. h4 {[%clk 0:02:55.9]} 8... e6
{[%clk 0:02:58.5]} 9. Be2 {[%clk 0:02:55.9]} 9... exd5 {[%clk 0:02:58.5]} 10.
exd5 {[%clk 0:02:56.7]} 10... Re8 {[%clk 0:02:51.6]} 11. Bg5 {[%clk 0:02:54.9]}
11... Qb6 {[%clk 0:02:46.4]} 12. Qd2 {[%clk 0:02:47]} 12... Ng4 {[%clk
0:02:42.5]} 13. O-O {[%clk 0:02:35.2]} 13... Be5 {[%clk 0:02:23.1]} 14. Nge4
{[%clk 0:02:26.9]} 14... Nd7 {[%clk 0:02:14.9]} 15. Bxg4 {[%clk 0:02:06.5]}
15... hxg4 {[%clk 0:02:12.7]} 16. h5 {[%clk 0:02:00.9]} 16... f5 {[%clk
0:02:07.4]} 17. Ng3 {[%clk 0:01:49.4]} 17... Bxg3 {[%clk 0:02:04.8]} 18. fxg3
{[%clk 0:01:49.5]} 18... Ne5 {[%clk 0:02:04.5]} 19. hxg6 {[%clk 0:01:43.2]}
19... Nxc4 {[%clk 0:02:03]} 20. Qf4 {[%clk 0:01:36.2]} 20... Ne5 {[%clk
0:01:43.7]} 21. Bf6 {[%clk 0:01:28.8]} 21... c4+ {[%clk 0:01:32.6]} 22. Kh1
{[%clk 0:01:24.5]} 22... Nxg6 {[%clk 0:01:30.1]} 23. Qh6 {[%clk 0:01:19.9]}
23... Qc7 {[%clk 0:00:44.1]} 24. Qxg6+ {[%clk 0:01:19.5]} 24... Kf8 {[%clk
0:00:44.3]} 25. Qh6+ {[%clk 0:01:19.6]} 25... Kg8 {[%clk 0:00:42.1]} 26. Qh8+
{[%clk 0:01:19.6]} 1-0

[Event "Early-Titled-Tuesday-Blitz-September-26-2023"]
[Site "Chess.com"]
[Date "2023.09.26"]
[Round "7"]
[White "Kopytkin"]
[Black "TregubovP"]
[Result "0-1"]
[WhiteElo "2380"]
[BlackElo "2638"]
[TimeControl "180+1"]
[EndTime "9:17:11 PDT"]
[Termination "TregubovP won by resignation"]

1. d4 {[%clk 0:02:58.4]} 1... Nf6 {[%clk 0:02:59.4]} 2. Bg5 {[%clk 0:02:57.7]}
2... e6 {[%clk 0:02:58.5]} 3. Nd2 {[%clk 0:02:57.1]} 3... d5 {[%clk 0:02:54.2]}
4. e3 {[%clk 0:02:57.4]} 4... h6 {[%clk 0:02:51.5]} 5. Bh4 {[%clk 0:02:57.1]}
5... Be7 {[%clk 0:02:48.6]} 6. Bd3 {[%clk 0:02:57.2]} 6... c5 {[%clk 0:02:47.1]}
7. c3 {[%clk 0:02:57.1]} 7... Nc6 {[%clk 0:02:47.7]} 8. f4 {[%clk 0:02:53.7]}
8... b6 {[%clk 0:02:20.7]} 9. Ngf3 {[%clk 0:02:51.5]} 9... Bb7 {[%clk 0:02:16]}
10. Bxf6 {[%clk 0:02:49.9]} 10... Bxf6 {[%clk 0:02:15.7]} 11. O-O {[%clk
0:02:48.2]} 11... O-O {[%clk 0:02:13.1]} 12. Ne5 {[%clk 0:02:48.3]} 12... Ne7
{[%clk 0:02:11.4]} 13. Qh5 {[%clk 0:02:45.9]} 13... Nc8 {[%clk 0:01:43.5]} 14.
Ng4 {[%clk 0:01:46.3]} 14... Nd6 {[%clk 0:01:40.5]} 15. Nxh6+ {[%clk 0:01:30.4]}
15... gxh6 {[%clk 0:01:36.3]} 16. Qxh6 {[%clk 0:01:26.8]} 16... Ne4 {[%clk
0:01:28.5]} 17. Rf3 {[%clk 0:01:27]} 17... Bg7 {[%clk 0:01:28.1]} 18. Rg3 {[%clk
0:01:13.7]} 18... Qf6 {[%clk 0:01:21.5]} 19. Qh5 {[%clk 0:01:11]} 19... Rfd8
{[%clk 0:01:12.1]} 20. Nf3 {[%clk 0:00:59.2]} 20... Nxg3 {[%clk 0:01:08.1]} 21.
hxg3 {[%clk 0:01:00.1]} 21... Qh6 {[%clk 0:01:06.9]} 22. Qg4 {[%clk 0:00:44.4]}
22... f5 {[%clk 0:01:06.9]} 23. Qg6 {[%clk 0:00:44.8]} 23... Qxg6 {[%clk
0:01:06.7]} 0-1

[Event "Early-Titled-Tuesday-Blitz-September-26-2023"]
[Site "Chess.com"]
[Date "2023.09.26"]
[Round "7"]
[White "maurovargas01"]
[Black "RamonManon0g"]
[Result "0-1"]
[WhiteElo "1895"]
[BlackElo "2290"]
[TimeControl "180+1"]
[EndTime "9:17:12 PDT"]
[Termination "RamonManon0g won by checkmate"]

1. e4 {[%clk 0:03:00.9]} 1... c5 {[%clk 0:02:54.7]} 2. Nc3 {[%clk 0:02:57.6]}
2... d6 {[%clk 0:02:49.7]} 3. f4 {[%clk 0:02:42.8]} 3... Nc6 {[%clk 0:02:48.8]}
4. Nf3 {[%clk 0:02:43.7]} 4... a6 {[%clk 0:02:47.9]} 5. g3 {[%clk 0:02:40.4]}
5... g6 {[%clk 0:02:47.9]} 6. Bg2 {[%clk 0:02:40.1]} 6... Bg7 {[%clk 0:02:48.8]}
7. O-O {[%clk 0:02:38.5]} 7... e6 {[%clk 0:02:49.7]} 8. d3 {[%clk 0:02:38.4]}
8... Nge7 {[%clk 0:02:50.6]} 9. Ne2 {[%clk 0:02:36.5]} 9... O-O {[%clk
0:02:51.5]} 10. c3 {[%clk 0:02:32.1]} 10... b5 {[%clk 0:02:49.6]} 11. h3 {[%clk
0:02:29.1]} 11... b4 {[%clk 0:02:49.4]} 12. Bd2 {[%clk 0:02:28.1]} 12... a5
{[%clk 0:02:47.8]} 13. Rb1 {[%clk 0:02:11.8]} 13... Ba6 {[%clk 0:02:46.5]} 14.
c4 {[%clk 0:02:10.8]} 14... a4 {[%clk 0:02:40.5]} 15. g4 {[%clk 0:02:07.6]}
15... d5 {[%clk 0:02:36.4]} 16. b3 {[%clk 0:01:58.9]} 16... dxe4 {[%clk
0:02:30.8]} 17. dxe4 {[%clk 0:01:57.2]} 17... Qd3 {[%clk 0:02:28.2]} 18. e5
{[%clk 0:01:47.1]} 18... Rfd8 {[%clk 0:02:23.6]} 19. Qe1 {[%clk 0:01:45.8]}
19... Qc2 {[%clk 0:02:13.2]} 20. Be3 {[%clk 0:01:33.3]} 20... Qxa2 {[%clk
0:02:03.5]} 21. bxa4 {[%clk 0:01:21.5]} 21... Bxc4 {[%clk 0:02:01.8]} 22. Ng3
{[%clk 0:01:13.4]} 22... Bxf1 {[%clk 0:01:58.7]} 23. Qxf1 {[%clk 0:00:49.9]}
23... c4 {[%clk 0:01:50.8]} 24. Bc5 {[%clk 0:00:27.7]} 24... Nd5 {[%clk
0:01:48.2]} 25. Ne4 {[%clk 0:00:20.4]} 25... Nxf4 {[%clk 0:01:39.5]} 26. Qxc4
{[%clk 0:00:18.4]} 26... Qxg2# {[%clk 0:01:37.3]} 0-1

[Event "Early-Titled-Tuesday-Blitz-September-26-2023"]
[Site "Chess.com"]
[Date "2023.09.26"]
[Round "7"]
[White "Fleetw00dMac"]
[Black "Roman_Ovetchkin"]
[Result "0-1"]
[WhiteElo "2487"]
[BlackElo "2695"]
[TimeControl "180+1"]
[EndTime "9:17:31 PDT"]
[Termination "Roman_Ovetchkin won by resignation"]

1. d4 {[%clk 0:03:00.9]} 1... Nf6 {[%clk 0:02:58.9]} 2. c4 {[%clk 0:03:00.7]}
2... c5 {[%clk 0:02:57.6]} 3. d5 {[%clk 0:03:00.5]} 3... b5 {[%clk 0:02:57.5]}
4. cxb5 {[%clk 0:03:00.8]} 4... a6 {[%clk 0:02:57.9]} 5. bxa6 {[%clk 0:03:01.1]}
5... g6 {[%clk 0:02:58]} 6. Nc3 {[%clk 0:03:00.9]} 6... Bg7 {[%clk 0:02:58.2]}
7. Nf3 {[%clk 0:03:00.6]} 7... O-O {[%clk 0:02:57.4]} 8. g3 {[%clk 0:03:00.6]}
8... d6 {[%clk 0:02:56]} 9. Bg2 {[%clk 0:03:00.1]} 9... Nbd7 {[%clk 0:02:54.8]}
10. O-O {[%clk 0:02:53.5]} 10... Nb6 {[%clk 0:02:54.8]} 11. Ne1 {[%clk
0:02:45.4]} 11... Rxa6 {[%clk 0:02:41.6]} 12. Nc2 {[%clk 0:02:29.5]} 12... Ng4
{[%clk 0:02:31.3]} 13. e4 {[%clk 0:01:39.1]} 13... Ne5 {[%clk 0:02:24.1]} 14.
Ne3 {[%clk 0:01:38.7]} 14... Ra8 {[%clk 0:02:00.7]} 15. Re1 {[%clk 0:01:38.2]}
15... Ba6 {[%clk 0:02:00.3]} 16. Bf1 {[%clk 0:01:38.3]} 16... Bxf1 {[%clk
0:01:58.2]} 17. Rxf1 {[%clk 0:01:38.2]} 17... Qc8 {[%clk 0:01:53.6]} 18. Kg2
{[%clk 0:01:37.7]} 18... Qa6 {[%clk 0:01:50.7]} 19. Qc2 {[%clk 0:01:22.6]} 19...
Qd3 {[%clk 0:01:46]} 20. Rd1 {[%clk 0:01:21.8]} 20... Qxc2 {[%clk 0:01:45.7]}
21. Nxc2 {[%clk 0:01:22.1]} 21... Nec4 {[%clk 0:01:36.9]} 22. Rd3 {[%clk
0:01:09.8]} 22... Na4 {[%clk 0:01:15.4]} 23. Nxa4 {[%clk 0:01:08.9]} 23... Rxa4
{[%clk 0:01:15.1]} 24. a3 {[%clk 0:01:06.9]} 24... Nxb2 {[%clk 0:00:40.2]} 25.
Bxb2 {[%clk 0:01:05.7]} 25... Bxb2 {[%clk 0:00:41.1]} 26. Rb1 {[%clk 0:01:05.9]}
26... Bf6 {[%clk 0:00:38.9]} 27. Rdb3 {[%clk 0:01:01.2]} 27... Rxe4 {[%clk
0:00:38]} 0-1

[Event "Early-Titled-Tuesday-Blitz-September-26-2023"]
[Site "Chess.com"]
[Date "2023.09.26"]
[Round "7"]
[White "Emp3rador"]
[Black "Aradhya2000"]
[Result "0-1"]
[WhiteElo "2526"]
[BlackElo "2701"]
[TimeControl "180+1"]
[EndTime "9:17:37 PDT"]
[Termination "Aradhya2000 won on time"]

1. e4 {[%clk 0:02:39]} 1... e5 {[%clk 0:02:59.8]} 2. Nf3 {[%clk 0:02:38.5]} 2...
Nc6 {[%clk 0:03:00]} 3. d4 {[%clk 0:02:34.3]} 3... exd4 {[%clk 0:02:59.4]} 4.
Nxd4 {[%clk 0:02:35.2]} 4... Nf6 {[%clk 0:02:59.2]} 5. Nc3 {[%clk 0:02:33.5]}
5... Nxe4 {[%clk 0:02:58.1]} 6. Nxe4 {[%clk 0:02:17.1]} 6... Qe7 {[%clk
0:02:58.2]} 7. Nb5 {[%clk 0:02:17.4]} 7... Qxe4+ {[%clk 0:02:55.4]} 8. Be2
{[%clk 0:02:18]} 8... Bb4+ {[%clk 0:02:50.7]} 9. c3 {[%clk 0:02:16.9]} 9... Ba5
{[%clk 0:02:50.9]} 10. O-O {[%clk 0:02:17.1]} 10... O-O {[%clk 0:02:49.7]} 11.
Bf3 {[%clk 0:01:23.5]} 11... Qh4 {[%clk 0:02:48.6]} 12. g3 {[%clk 0:01:17.6]}
12... Qf6 {[%clk 0:02:48.6]} 13. Be3 {[%clk 0:00:59.6]} 13... a6 {[%clk
0:02:43]} 14. Nd4 {[%clk 0:00:58.4]} 14... Bb6 {[%clk 0:02:43]} 15. Bg2 {[%clk
0:00:43.1]} 15... Nxd4 {[%clk 0:02:42.3]} 16. Bxd4 {[%clk 0:00:40.4]} 16... Bxd4
{[%clk 0:02:41.7]} 17. cxd4 {[%clk 0:00:41.3]} 17... d5 {[%clk 0:02:40.1]} 18.
Bxd5 {[%clk 0:00:28]} 18... Rd8 {[%clk 0:02:39.6]} 19. Qb3 {[%clk 0:00:28.2]}
19... c6 {[%clk 0:02:37.8]} 20. Bg2 {[%clk 0:00:28.2]} 20... Rxd4 {[%clk
0:02:25.9]} 21. Rae1 {[%clk 0:00:20.3]} 21... Qd8 {[%clk 0:02:22.2]} 22. Re5
{[%clk 0:00:15.9]} 22... Rb8 {[%clk 0:02:05.9]} 23. Rfe1 {[%clk 0:00:08.9]}
23... Be6 {[%clk 0:02:05.8]} 24. Qc3 {[%clk 0:00:05.5]} 24... Rd1 {[%clk
0:02:03]} 25. a3 {[%clk 0:00:05]} 25... Rxe1+ {[%clk 0:02:02.6]} 26. Rxe1 {[%clk
0:00:04.5]} 26... Qd6 {[%clk 0:02:02]} 27. h4 {[%clk 0:00:04.7]} 27... Rd8
{[%clk 0:01:54.9]} 28. Qa5 {[%clk 0:00:03.3]} 28... h6 {[%clk 0:01:51.3]} 29.
Re3 {[%clk 0:00:01.3]} 29... Qd1+ {[%clk 0:01:46]} 30. Kh2 {[%clk 0:00:01.3]}
30... Qd2 {[%clk 0:01:42.3]} 31. Qb6 {[%clk 0:00:01.6]} 31... Rd7 {[%clk
0:01:41.9]} 0-1

[Event "Early-Titled-Tuesday-Blitz-September-26-2023"]
[Site "Chess.com"]
[Date "2023.09.26"]
[Round "7"]
[White "Herman-NY"]
[Black "chezzgirl04"]
[Result "1-0"]
[WhiteElo "2498"]
[BlackElo "2182"]
[TimeControl "180+1"]
[EndTime "9:17:41 PDT"]
[Termination "Herman-NY won by resignation"]

1. e4 {[%clk 0:03:00.9]} 1... e5 {[%clk 0:02:45.6]} 2. Nf3 {[%clk 0:03:01.3]}
2... Nc6 {[%clk 0:02:44.4]} 3. Bb5 {[%clk 0:03:01.5]} 3... a6 {[%clk 0:02:44]}
4. Ba4 {[%clk 0:03:01.9]} 4... Nf6 {[%clk 0:02:44.3]} 5. O-O {[%clk 0:03:01.6]}
5... b5 {[%clk 0:02:44.4]} 6. Bb3 {[%clk 0:03:01.8]} 6... Bc5 {[%clk 0:02:45]}
7. d3 {[%clk 0:03:01.7]} 7... O-O {[%clk 0:02:44.9]} 8. c3 {[%clk 0:03:02]} 8...
h6 {[%clk 0:02:43.9]} 9. a4 {[%clk 0:03:01.3]} 9... Rb8 {[%clk 0:02:43.6]} 10.
axb5 {[%clk 0:03:01.1]} 10... axb5 {[%clk 0:02:43.2]} 11. d4 {[%clk 0:02:42.2]}
11... Bd6 {[%clk 0:02:40.5]} 12. dxe5 {[%clk 0:02:22.1]} 12... Bxe5 {[%clk
0:02:38.6]} 13. Nxe5 {[%clk 0:02:22.3]} 13... Nxe5 {[%clk 0:02:38.2]} 14. f4
{[%clk 0:02:23]} 14... Nc6 {[%clk 0:02:38.2]} 15. e5 {[%clk 0:02:15]} 15... Ne4
{[%clk 0:02:38.3]} 16. Qd5 {[%clk 0:02:06.3]} 16... Bb7 {[%clk 0:02:15]} 17.
Qxe4 {[%clk 0:02:06.4]} 17... Na5 {[%clk 0:02:14.5]} 18. Bd5 {[%clk 0:02:01.6]}
18... c6 {[%clk 0:02:12.9]} 19. Ba2 {[%clk 0:02:01.5]} 19... c5 {[%clk
0:02:10.4]} 20. Qe2 {[%clk 0:01:42.3]} 20... c4 {[%clk 0:02:08.6]} 21. Be3
{[%clk 0:01:39.4]} 21... Qc7 {[%clk 0:01:50.1]} 22. Nd2 {[%clk 0:01:31.9]} 22...
d6 {[%clk 0:01:44.9]} 23. Bd4 {[%clk 0:01:20.6]} 23... dxe5 {[%clk 0:01:34.5]}
24. fxe5 {[%clk 0:01:19.8]} 24... Rbe8 {[%clk 0:01:27]} 25. Rae1 {[%clk
0:01:17.1]} 25... f6 {[%clk 0:01:23.6]} 26. e6 {[%clk 0:01:10.4]} 26... Re7
{[%clk 0:01:18.7]} 27. Bb1 {[%clk 0:01:07.7]} 27... Bd5 {[%clk 0:01:03.2]} 28.
Bf5 {[%clk 0:01:05.2]} 28... Rfe8 {[%clk 0:01:01]} 29. Qg4 {[%clk 0:00:58.9]}
1-0

[Event "Early-Titled-Tuesday-Blitz-September-26-2023"]
[Site "Chess.com"]
[Date "2023.09.26"]
[Round "7"]
[White "GradualismUnleashed"]
[Black "GMaka"]
[Result "1-0"]
[WhiteElo "2603"]
[BlackElo "2426"]
[TimeControl "180+1"]
[EndTime "9:17:45 PDT"]
[Termination "GradualismUnleashed won by resignation"]

1. e4 {[%clk 0:03:00.9]} 1... e6 {[%clk 0:02:59.2]} 2. d4 {[%clk 0:03:00.8]}
2... d5 {[%clk 0:02:59.9]} 3. Nc3 {[%clk 0:03:01.4]} 3... Bb4 {[%clk 0:02:58.4]}
4. e5 {[%clk 0:03:01.6]} 4... Ne7 {[%clk 0:02:53.6]} 5. a3 {[%clk 0:03:00.1]}
5... Bxc3+ {[%clk 0:02:53.3]} 6. bxc3 {[%clk 0:03:01]} 6... c5 {[%clk
0:02:53.9]} 7. Qg4 {[%clk 0:03:01]} 7... Qc7 {[%clk 0:02:53.7]} 8. Qxg7 {[%clk
0:03:01.1]} 8... Rg8 {[%clk 0:02:54.3]} 9. Qxh7 {[%clk 0:03:01.7]} 9... cxd4
{[%clk 0:02:55]} 10. Ne2 {[%clk 0:03:02.3]} 10... dxc3 {[%clk 0:02:51.3]} 11. f4
{[%clk 0:03:02.4]} 11... Bd7 {[%clk 0:02:36.1]} 12. Qd3 {[%clk 0:03:01.2]} 12...
Nbc6 {[%clk 0:02:28.5]} 13. Nxc3 {[%clk 0:02:57.3]} 13... a6 {[%clk 0:02:26.7]}
14. Bd2 {[%clk 0:02:52.5]} 14... O-O-O {[%clk 0:02:14.6]} 15. h4 {[%clk
0:02:49.1]} 15... Nf5 {[%clk 0:02:09.5]} 16. Rh3 {[%clk 0:02:44.8]} 16... Ncd4
{[%clk 0:02:05.8]} 17. h5 {[%clk 0:02:35.6]} 17... Kb8 {[%clk 0:00:59.7]} 18. h6
{[%clk 0:02:34.4]} 18... Rg6 {[%clk 0:00:25.6]} 19. h7 {[%clk 0:02:30.2]} 19...
Rh8 {[%clk 0:00:26.2]} 20. Rb1 {[%clk 0:02:28.9]} 20... Ka8 {[%clk 0:00:20.4]}
21. Rb4 {[%clk 0:02:23.5]} 21... Nb5 {[%clk 0:00:18.3]} 22. a4 {[%clk
0:02:14.8]} 22... Nxc3 {[%clk 0:00:18.2]} 23. Qxc3 {[%clk 0:02:12.7]} 23... Qxc3
{[%clk 0:00:18.2]} 24. Bxc3 {[%clk 0:02:12.6]} 24... Rg7 {[%clk 0:00:18.7]} 25.
Bd3 {[%clk 0:01:59.7]} 25... Rgxh7 {[%clk 0:00:19.1]} 26. Bxf5 {[%clk
0:01:56.5]} 26... exf5 {[%clk 0:00:18.8]} 27. e6 {[%clk 0:01:53.9]} 27... Rxh3
{[%clk 0:00:17.3]} 28. gxh3 {[%clk 0:01:53.6]} 28... Re8 {[%clk 0:00:16.7]} 29.
Be5 {[%clk 0:01:46.8]} 29... fxe6 {[%clk 0:00:16.7]} 30. a5 {[%clk 0:01:45.6]}
30... Bb5 {[%clk 0:00:15]} 31. Kf2 {[%clk 0:01:45.5]} 31... Re7 {[%clk
0:00:15.5]} 32. Rb1 {[%clk 0:01:45.1]} 32... Rh7 {[%clk 0:00:16.4]} 33. Kg3
{[%clk 0:01:43.7]} 33... b6 {[%clk 0:00:17]} 34. axb6 {[%clk 0:01:42.2]} 34...
Kb7 {[%clk 0:00:17.9]} 35. Bc7 {[%clk 0:01:42.5]} 35... a5 {[%clk 0:00:18.3]}
36. Rxb5 {[%clk 0:01:40.8]} 36... Ka6 {[%clk 0:00:16.9]} 37. b7 {[%clk
0:01:38.4]} 1-0